[Event "IND-ch Women 2019"]
[Site "Karaikkudi"]
[Date "2019.07.21"]
[Round "4.1"]
[White "Thipsay, Bagyashree Sathe"]
[Black "Kulkarni Bhakti"]
[Result "0-1"]
[ECO "C54"]
[WhiteElo "2093"]
[BlackElo "2388"]
[Annotator "NA"]
[PlyCount "88"]
[EventDate "2019.07.19"]
[EventType "swiss"]
[EventCountry "IND"]
[SourceTitle "playchess.com"]
[Source "ChessBase"]
[SourceQuality "1"]
[TimeControl "40/5400+30:1800+30"]

1. e4 {[%emt 0:00:00]} e5 {[%emt 0:00:52]} 2. Nf3 {[%emt 0:00:00]} Nc6 {[%emt 0:00:28]} 3. Bc4 {[%emt 0:00:00]} Bc5 {[%emt 0:00:31]} 4. c3 {[%emt 0:01:12]} Nf6 {[%emt 0:00:26]} 5. d3 {[%emt 0:00:06]} a6 {[%emt 0:00:29]} 6. Bb3 {[%emt 0:00:50]} Ba7 {[%emt 0:00:46]} 7. Nbd2 {[%emt 0:04:52]} d6 {[%emt 0:01:36]} 8. Nf1 {[%emt 0:01:58]} h6 {[%emt 0:15:53]} 9. Ng3 {[%emt 0:02:56]} O-O {[%emt 0:06:14]} 10. O-O {[%emt 0:02:48]} Be6 {[%emt 0:01:52] C54: Giuoco Piano: 4 c3 Nf6, main lines with 5 d4 and 5 d3} 11. Bc2 {[%emt 0:12:36]} d5 {[%emt 0:06:19]} (11... Ne7 12. h3 Ng6 13. d4 Qc8 14. Re1 Rd8 15. Bd2 {½-½ (64) Dominguez Perez,L (2750)-Jones,G (2702) Hengshui 2019}) 12. Qe2 {[%emt 0:03:20]} Re8 {[%emt 0:02:01]} 13. h3 {[%emt 0:04:44]} Qe7 {[%emt 0:13:14]} 14. Nh2 $146 {[%emt 0:12:02]} ({Predecessor:} 14. Nh4 dxe4 15. dxe4 {1-0 (41) Kleman,M (2260)-Frindt,K (2222) Bratislava 2010}) 14... dxe4 {[%emt 0:04:55]} 15. dxe4 {[%emt 0:03:48]} Rad8 {[%emt 0:07:40]} 16. Ng4 {[%emt 0:01:50]} Nxg4 {[%emt 0:01:56]} 17. hxg4 {[%emt 0:00:14]} g6 {[%emt 0:02:14] [#]} 18. Re1 $2 {[%emt 0:06:27]} (18. Nf5 $1 $11 {[%mdl 512]} gxf5 19. gxf5) 18... Qh4 {[%emt 0:00:43]} 19. Be3 {[%emt 0:00:34]} Bxg4 {[%emt 0:01:24]} 20. Qf1 {[%emt 0:01:53]} Bxe3 {[%emt 0:00:38]} 21. Rxe3 {[%emt 0:00:02]} Rd2 {[%emt 0:01:17]} 22. Rc1 {[%emt 0:00:04]} Red8 {[%emt 0:00:23]} 23. b4 {[%emt 0:00:51]} Be6 {[%emt 0:03:58]} 24. a4 {[%emt 0:03:37]} Qe7 {[%emt 0:01:09]} 25. Qe1 $17 {[%emt 0:00:51]} Qd7 {[%emt 0:07:41]} 26. Nf1 {[%emt 0:01:07]} Rd6 {[%emt 0:18:21]} 27. Rg3 {[%emt 0:00:53]} Ne7 {[%emt 0:00:00]} 28. Nh2 {[%emt 0:06:33]} Kh7 {[%emt 0:00:00]} 29. Qe3 {[%emt 0:00:59]} g5 {[%emt 0:00:00]} 30. Rf3 {[%emt 0:11:20]} Ng6 {[%emt 0:00:00]} 31. g3 {[%emt 0:00:03]} Kg7 {[%emt 0:00:00]} 32. Qe1 {[%emt 0:00:57]} Qc8 {[%emt 0:00:00]} 33. Re3 {[%emt 0:01:22]} c5 {[%emt 0:00:00]} 34. b5 {[%emt 0:05:21]} axb5 {[%emt 0:00:00]} 35. axb5 {[%emt 0:00:01]} Bc4 {[%emt 0:00:00]} 36. Rb1 {[%emt 0:01:38]} Rd2 {[%emt 0:00:00]} 37. Bd1 {[%emt 0:00:45]} Bxb5 {[%emt 0:00:00]} 38. Bg4 {[%emt 0:00:35]} Qc6 {[%emt 0:00:00]} 39. Nf3 {[%emt 0:03:08]} Ra2 {[%emt 0:00:00]} 40. Bf5 {[%emt 0:00:00]} f6 {[%emt 0:00:00]} 41. Rd1 {[%emt 0:05:38]} Rd6 {[%emt 0:05:44]} 42. Kg2 {[%emt 0:02:30]} Ne7 {[%emt 0:03:30]} 43. Bg4 {[%emt 0:03:20]} Bc4 {[%emt 0:02:33]} 44. Ra1 {[%emt 0:01:37]} Qa4 {[%emt 0:02:47]} 0-1

[Event "IND-ch Women 2019"]
[Site "Karaikkudi"]
[Date "2019.07.21"]
[Round "4.2"]
[White "Nandhidhaa, P V"]
[Black "Vantika Agrawal"]
[Result "0-1"]
[ECO "B31"]
[WhiteElo "2259"]
[BlackElo "2243"]
[Annotator "NA"]
[PlyCount "82"]
[EventDate "2019.07.19"]
[EventType "swiss"]
[EventCountry "IND"]
[SourceTitle "playchess.com"]
[Source "ChessBase"]
[SourceQuality "1"]
[TimeControl "40/5400+30:1800+30"]

1. e4 {[%emt 0:00:00]} c5 {[%emt 0:00:00]} 2. Nf3 {[%emt 0:00:00]} Nc6 {[%emt 0:00:00]} 3. Bb5 {[%emt 0:00:00]} g6 {[%emt 0:00:17]} 4. Bxc6 {[%emt 0:00:00]} bxc6 {[%emt 0:00:16]} 5. O-O {[%emt 0:00:24]} Bg7 {[%emt 0:00:04]} 6. Re1 {[%emt 0:00:39]} Nh6 {[%emt 0:00:14]} 7. c3 {[%emt 0:00:25]} O-O {[%emt 0:00:09]} 8. d4 {[%emt 0:00:07]} cxd4 {[%emt 0:00:41]} 9. cxd4 {[%emt 0:00:06]} d5 {[%emt 0:00:18]} 10. e5 {[%emt 0:00:35] B31: Sicilian: 2...Nc6 3 Bb5 g6} f6 {[%emt 0:04:15]} 11. exf6 {[%emt 0:00:41]} exf6 {[%emt 0:00:16]} 12. h3 {[%emt 0:01:12]} Nf7 {[%emt 0:01:55]} 13. Nc3 {[%emt 0:00:48]} g5 {[%emt 0:09:54]} 14. b3 {[%emt 0:05:21]} Bf5 $146 {[%emt 0:04:22]} ({Predecessor:} 14... Qa5 15. Na4 Bf5 16. Qd2 Qxd2 17. Bxd2 Be4 {½-½ (44) Sjugirov,S (2610)-Alekseenko,K (2367) Sochi 2012}) 15. Na4 {[%emt 0:06:53]} Re8 {[%emt 0:04:24]} 16. Ba3 {[%emt 0:05:08]} Qc7 {[%emt 0:08:26]} 17. Rc1 {[%emt 0:07:30]} Nd6 {[%emt 0:02:43]} 18. Bxd6 {[%emt 0:07:10]} Qxd6 {[%emt 0:00:32]} 19. Nc5 {[%emt 0:03:51]} Qf4 {[%emt 0:22:29]} 20. Qd2 {[%emt 0:05:58]} Qxd2 {[%emt 0:01:42]} 21. Nxd2 {[%emt 0:00:01]} Bf8 {[%emt 0:03:22]} 22. g4 {[%emt 0:10:04]} Bg6 {[%emt 0:01:51]} 23. Nf3 {[%emt 0:03:21]} Kf7 $11 {[%emt 0:14:23]} 24. Nd7 {[%emt 0:13:02]} Rxe1+ {[%emt 0:01:16]} 25. Nxe1 {[%emt 0:01:33]} Bb4 {[%emt 0:01:10]} 26. Nc5 {[%emt 0:05:04]} Re8 {[%emt 0:01:46]} 27. Kf1 {[%emt 0:06:23]} Bd2 {[%emt 0:02:11]} 28. Rd1 {[%emt 0:01:01]} Bc3 {[%emt 0:00:23]} 29. Nf3 {[%emt 0:04:18]} Re7 {[%emt 0:03:33]} 30. Ng1 {[%emt 0:05:01]} h5 {[%emt 0:03:22]} 31. Ne2 {[%emt 0:01:04]} Bb4 {[%emt 0:00:15]} 32. f3 {[%emt 0:01:13]} f5 {[%emt 0:01:12]} 33. Kf2 {[%emt 0:02:50]} f4 {[%emt 0:00:40]} 34. h4 {[%emt 0:01:57]} hxg4 {[%emt 0:00:35]} 35. fxg4 {[%emt 0:00:05]} Kf6 {[%emt 0:00:52]} 36. h5 {[%emt 0:02:22]} Bh7 {[%emt 0:01:20]} 37. Nd3 {[%emt 0:01:05]} Bd6 {[%emt 0:00:36]} 38. Ne5 {[%emt 0:01:09]} c5 {[%emt 0:01:53]} 39. Nf3 {[%emt 0:00:25]} Re3 {[%emt 0:04:39]} 40. dxc5 {[%emt 0:00:00]} Bxc5 {[%emt 0:00:00]} 41. Rc1 {[%emt 0:06:02]} Rxf3+ {[%emt 0:01:06]} 0-1

[Event "IND-ch Women 2019"]
[Site "Karaikkudi"]
[Date "2019.07.21"]
[Round "4.3"]
[White "Soumya, Swaminathan"]
[Black "Jain Nityata"]
[Result "1-0"]
[ECO "D90"]
[WhiteElo "2402"]
[BlackElo "2135"]
[Annotator "NA"]
[PlyCount "55"]
[EventDate "2019.07.19"]
[EventType "swiss"]
[EventCountry "IND"]
[SourceTitle "playchess.com"]
[Source "ChessBase"]
[SourceQuality "1"]
[TimeControl "40/5400+30:1800+30"]

{[%evp 8,31,46,25,32767,32,42,16,25,34,47,30,46,37,56,49,72,72,89,64,32767,73,100,47,111,60]} 1. c4 {[%emt 0:00:08]} Nf6 {[%emt 0:00:19]} 2. Nf3 {[%emt 0:00:07]} g6 {[%emt 0:00:31]} 3. Nc3 {[%emt 0:00:04]} d5 {[%emt 0:00:32]} 4. cxd5 {[%emt 0:00:04]} Nxd5 {[%emt 0:00:04]} 5. Qb3 {[%emt 0:00:06]} Nb6 {[%emt 0:04:58]} 6. d4 {[%emt 0:03:33]} Bg7 {[%emt 0:02:26]} 7. Bf4 {[%emt 0:00:08]} Be6 {[%emt 0:02:16]} 8. Qa3 {[%emt 0:00:48]} Nc6 {[%emt 0:07:54]} 9. e3 {[%emt 0:02:19]} O-O {[%emt 0:01:05]} 10. Be2 {[%emt 0:03:18]} Bc4 {[%emt 0:11:20]} 11. O-O {[%emt 0:15:55]} Re8 {[%emt 0:15:37]} 12. Bxc4 {[%emt 0:08:01]} Nxc4 {[%emt 0:00:54]} 13. Qc5 {[%emt 0:00:03]} Nd6 {[%emt 0:09:52]} 14. Rfd1 {[%emt 0:18:07]} Qc8 {[%emt 0:08:44]} 15. h3 {[%emt 0:15:17]} (15. Nd5 $16) 15... Qf5 {[%emt 0:08:46]} (15... Nd8 $14) 16. d5 $14 {[%emt 0:01:04]} ({White should try} 16. Qxf5 $16 gxf5 17. Nd5) 16... Ne5 {[%emt 0:04:14]} 17. Nxe5 {[%emt 0:03:08]} Bxe5 {[%emt 0:00:57]} 18. Bxe5 {[%emt 0:00:05]} Qxe5 {[%emt 0:00:13]} 19. Qxc7 {[%emt 0:00:03]} Rac8 {[%emt 0:01:40]} 20. Qa5 {[%emt 0:00:35]} Nc4 {[%emt 0:01:59]} 21. Qb4 {[%emt 0:02:18]} e6 {[%emt 0:11:42]} 22. dxe6 {[%emt 0:06:04]} Qxe6 {[%emt 0:00:23]} 23. Qxb7 {[%emt 0:02:36]} Rb8 {[%emt 0:01:14]} 24. Qxa7 {[%emt 0:00:25]} Rxb2 {[%emt 0:00:17]} 25. Qd4 {[%emt 0:00:30]} Qf5 {[%emt 0:01:16]} 26. e4 {[%emt 0:00:11]} Qc8 {[%emt 0:02:21]} 27. Nd5 {[%emt 0:00:10]} Re6 {[%emt 0:00:37]} 28. Rac1 {[%emt 0:00:13]} 1-0

[Event "IND-ch Women 2019"]
[Site "Karaikkudi"]
[Date "2019.07.21"]
[Round "4.4"]
[White "Divya Deshmukh"]
[Black "Meenakshi Subbaraman"]
[Result "1/2-1/2"]
[ECO "B01"]
[WhiteElo "2373"]
[BlackElo "2163"]
[Annotator "NA"]
[PlyCount "145"]
[EventDate "2019.07.19"]
[EventType "swiss"]
[EventCountry "IND"]
[SourceTitle "playchess.com"]
[Source "ChessBase"]
[SourceQuality "1"]
[TimeControl "40/5400+30:1800+30"]

1. e4 {[%emt 0:00:00]} d5 {[%emt 0:02:43]} 2. exd5 {[%emt 0:00:00]} Qxd5 {[%emt 0:00:02]} 3. Nc3 {[%emt 0:00:00]} Qd8 {[%emt 0:00:09]} 4. Bc4 {[%emt 0:00:16]} Nf6 {[%emt 0:00:39]} 5. Nf3 {[%emt 0:00:20]} g6 {[%emt 0:01:14]} (5... a6 6. a4 Nc6 7. h3 Bf5 8. d3 h6 9. g4 Bg6 10. Bf4 e6 11. Ne5 Nxe5 12. Bxe5 Bd6 13. Qe2 Bxe5 14. Qxe5 {1-0 (44) Kamsky,G (2677)-Bartholomew,J (2477) Reykjavik 2018}) 6. Ne5 {[%emt 0:00:51] B01: Scandinavian Defence} e6 {[%emt 0:00:32]} 7. d4 {[%emt 0:00:06]} Bg7 {[%emt 0:01:36]} 8. Bg5 {[%emt 0:01:03]} h6 {[%emt 0:05:27]} 9. Be3 $146 {[%emt 0:00:22]} ({Predecessor:} 9. Bh4 Nbd7 10. Qf3 Nb6 11. Bb5+ c6 12. Nxc6 bxc6 13. Bxc6+ {0-1 (54) Golubka,P (2509)-Drazic,S (2394) Budapest 2018}) 9... Nbd7 {[%emt 0:05:13]} 10. Qe2 {[%emt 0:07:45]} c6 {[%emt 0:09:37]} 11. Bxh6 {[%emt 0:10:19]} (11. Bd3 $14) 11... Rxh6 {[%emt 0:21:55] [#]} (11... Bxh6 $15 12. Nxf7 {[%mdl 64] Double Attack} Bd2+ 13. Kxd2 Kxf7 14. Qxe6+ Kg7 15. Qf7+ Kh6) 12. Nxf7 $1 {[%emt 0:00:11] Double Attack} Qe7 {[%emt 0:00:10]} 13. Nxh6 {[%emt 0:00:49]} Bxh6 {[%emt 0:00:02]} 14. Bxe6 {[%emt 0:09:52]} Nb6 {[%emt 0:00:02]} 15. Bb3 {[%emt 0:13:03]} Nbd5 {[%emt 0:02:21]} 16. Qxe7+ {[%emt 0:04:04]} Kxe7 {[%emt 0:00:02]} 17. Ne2 {[%emt 0:03:38]} a5 {[%emt 0:00:36]} 18. a4 {[%emt 0:06:02]} Kd6 {[%emt 0:05:33]} (18... Nb4 $11) 19. Ng3 {[%emt 0:03:03]} Bd7 {[%emt 0:01:58]} 20. O-O {[%emt 0:00:15]} Rf8 {[%emt 0:03:51]} ({Black should play} 20... Kc7 $14) 21. Rae1 {[%emt 0:04:37]} Rh8 {[%emt 0:02:33]} 22. h3 {[%emt 0:05:38]} Bf4 $16 {[%emt 0:08:32]} 23. c4 {[%emt 0:04:37]} Nb4 {[%emt 0:00:19]} 24. Ne4+ {[%emt 0:00:07]} Nxe4 {[%emt 0:00:23]} 25. Rxe4 {[%emt 0:00:01]} Bg5 {[%emt 0:03:43]} 26. c5+ {[%emt 0:03:29]} Kc7 {[%emt 0:00:04]} 27. Be6 {[%emt 0:00:40]} Bf6 {[%emt 0:05:00]} 28. Bxd7 {[%emt 0:03:36]} Kxd7 {[%emt 0:00:02]} 29. Rfe1 {[%emt 0:00:07]} Nd5 {[%emt 0:02:49]} 30. Kh2 {[%emt 0:00:55]} Rb8 {[%emt 0:02:19]} 31. Rc1 {[%emt 0:06:37]} Be7 {[%emt 0:00:56]} 32. g3 {[%emt 0:06:41]} g5 {[%emt 0:01:41]} 33. Kg2 {[%emt 0:01:54]} Nf6 {[%emt 0:06:54]} 34. Re5 {[%emt 0:00:28]} Nd5 {[%emt 0:00:02]} 35. Re4 {[%emt 0:02:02]} Nf6 {[%emt 0:00:02]} 36. Re3 {[%emt 0:00:57]} Nd5 {[%emt 0:00:44]} 37. Rf3 {[%emt 0:00:20]} Bf6 {[%emt 0:01:16]} 38. Rd3 {[%emt 0:00:59]} Re8 {[%emt 0:01:30]} 39. Kf3 {[%emt 0:00:44]} Rf8 {[%emt 0:00:01]} 40. Kg2 {[%emt 0:00:00]} Re8 {[%emt 0:00:00]} 41. Rd2 {[%emt 0:07:44]} Re4 {[%emt 0:06:01]} 42. Rcd1 {[%emt 0:00:25]} Re8 {[%emt 0:00:32]} 43. Rc1 {[%emt 0:07:30]} Re4 {[%emt 0:00:36]} 44. Kf3 {[%emt 0:02:08]} Re8 {[%emt 0:07:24]} 45. Rh1 {[%emt 0:00:58]} Rf8 {[%emt 0:00:13]} 46. Kg2 {[%emt 0:00:13]} Re8 {[%emt 0:01:15]} 47. h4 {[%emt 0:02:44]} gxh4 {[%emt 0:00:02]} 48. gxh4 {[%emt 0:00:02]} Rg8+ {[%emt 0:06:50]} 49. Kf1 {[%emt 0:01:23]} Ke6 {[%emt 0:06:04]} 50. Rd3 {[%emt 0:01:17]} Nf4 {[%emt 0:00:37]} 51. Rg3 {[%emt 0:01:59]} Rh8 {[%emt 0:06:15]} 52. Rf3 {[%emt 0:05:48]} Kf5 {[%emt 0:00:13]} 53. h5 {[%emt 0:01:16]} Bxd4 {[%emt 0:02:36]} 54. h6 {[%emt 0:00:43]} Rh7 {[%emt 0:00:12]} 55. Rg3 {[%emt 0:03:08]} Bxb2 {[%emt 0:00:12]} 56. Ke1 {[%emt 0:00:24]} Bf6 {[%emt 0:01:11]} 57. Rg8 {[%emt 0:03:04]} Bg5 {[%emt 0:05:45]} 58. Rg7 {[%emt 0:01:46]} Rxh6 {[%emt 0:00:00]} 59. Rxh6 {[%emt 0:00:00]} Bxh6 {[%emt 0:00:00]} 60. Rxb7 {[%emt 0:00:00]} Nd3+ {[%emt 0:00:00]} 61. Ke2 {[%emt 0:00:47]} Nxc5 {[%emt 0:00:00]} 62. Ra7 {[%emt 0:00:01]} Nb3 {[%emt 0:00:57]} 63. Kd3 {[%emt 0:00:00]} Ke6 {[%emt 0:01:24]} 64. Kc4 {[%emt 0:01:10]} Nd2+ {[%emt 0:00:01]} 65. Kc5 {[%emt 0:00:08]} Ne4+ {[%emt 0:00:47]} 66. Kxc6 {[%emt 0:00:02]} Bd2 {[%emt 0:00:14]} 67. Ra8 {[%emt 0:01:47]} Bb4 {[%emt 0:00:40]} 68. f3 {[%emt 0:00:30]} Nc3 {[%emt 0:00:02]} 69. Ra6 {[%emt 0:00:28]} Kf5 {[%emt 0:00:11]} 70. Ra7 {[%emt 0:00:05]} Ke5 {[%emt 0:00:30]} 71. Rh7 {[%emt 0:00:26]} Nxa4 {[%emt 0:01:34]} 72. Rh5+ {[%emt 0:00:04]} Kf4 {[%emt 0:00:15]} 73. Rxa5 {[%emt 0:01:12] Ke5} 1/2-1/2

[Event "IND-ch Women 2019"]
[Site "Karaikkudi"]
[Date "2019.07.21"]
[Round "4.5"]
[White "Vijayalakshmi, Subbaraman"]
[Black "Harshita Guddanti"]
[Result "1-0"]
[ECO "A07"]
[WhiteElo "2357"]
[BlackElo "2078"]
[Annotator "NA"]
[PlyCount "107"]
[EventDate "2019.07.19"]
[EventType "swiss"]
[EventCountry "IND"]
[SourceTitle "playchess.com"]
[Source "ChessBase"]
[SourceQuality "1"]
[TimeControl "40/5400+30:1800+30"]

1. Nf3 {[%emt 0:03:19]} Nf6 {[%emt 0:00:51]} 2. g3 {[%emt 0:00:17]} d5 {[%emt 0:01:04]} 3. Bg2 {[%emt 0:00:12]} c6 {[%emt 0:02:30]} 4. b3 {[%emt 0:00:21]} Bg4 {[%emt 0:01:52]} 5. Bb2 {[%emt 0:00:12]} Nbd7 {[%emt 0:00:35]} 6. O-O {[%emt 0:01:18]} Qc7 {[%emt 0:04:28]} 7. d4 {[%emt 0:01:03]} g6 $146 {[%emt 0:12:18] A07: Réti Opening: New York and Capablanca Systems} ({Predecessor:} 7... e6 8. c4 Be7 9. Nbd2 O-O 10. a3 a5 11. Rc1 h6 12. Ne5 Bf5 13. Re1 Rfd8 14. Nd3 Qb6 15. e4 {0-1 (57) Gorovenko,D (2134)-Kanevskaya,A (2136) Moscow 2019}) 8. c4 {[%emt 0:05:28]} Bg7 {[%emt 0:01:38]} 9. Nc3 {[%emt 0:00:42]} Rd8 {[%emt 0:08:02]} 10. cxd5 {[%emt 0:03:31]} Nxd5 {[%emt 0:07:19]} 11. Nxd5 {[%emt 0:01:17]} cxd5 {[%emt 0:00:08]} 12. Rc1 {[%emt 0:00:32]} Qb6 {[%emt 0:03:39]} 13. Qd2 {[%emt 0:03:30]} Nf6 {[%emt 0:09:07]} 14. Ne5 {[%emt 0:08:18]} Bf5 {[%emt 0:03:04]} 15. Ba3 {[%emt 0:01:53]} Ne4 {[%emt 0:05:03]} 16. Qb4 {[%emt 0:02:40]} Qxb4 {[%emt 0:02:06]} 17. Bxb4 {[%emt 0:00:06]} f6 {[%emt 0:04:42] [#]} 18. Nd3 {[%emt 0:08:48]} ({White should try} 18. Rc7 $1 $16 {[%cal Rc7e7]} Nd6 19. Nf3) 18... b6 {[%emt 0:11:12]} 19. Rc7 {[%emt 0:06:48]} Rd7 {[%emt 0:00:14]} 20. Rfc1 {[%emt 0:00:44]} g5 {[%emt 0:01:59]} 21. g4 {[%emt 0:11:09]} Be6 {[%emt 0:01:24]} 22. R1c6 $16 {[%emt 0:01:34]} Bf8 {[%emt 0:06:42]} 23. Ba3 {[%emt 0:03:15]} h5 {[%emt 0:01:36]} 24. gxh5 {[%emt 0:01:49]} Bf5 {[%emt 0:02:22]} 25. f3 {[%emt 0:02:26]} Nd6 {[%emt 0:01:07]} 26. Bxd6 {[%emt 0:00:28]} Bxd3 {[%emt 0:02:22]} 27. exd3 {[%emt 0:00:16]} exd6 {[%emt 0:02:18]} 28. Bh3 {[%emt 0:00:38]} Rxc7 {[%emt 0:02:20]} 29. Rxc7 {[%emt 0:00:06]} Rxh5 {[%emt 0:00:21]} 30. Bg4 {[%emt 0:01:17]} Rh6 {[%emt 0:00:05]} 31. Rxa7 {[%emt 0:00:17]} Be7 {[%emt 0:00:15]} 32. h3 {[%emt 0:01:32]} f5 {[%emt 0:01:49]} 33. Bxf5 {[%emt 0:00:07]} Rf6 {[%emt 0:00:04]} 34. Bd7+ {[%emt 0:00:17]} Kd8 {[%emt 0:00:29]} 35. Kg2 {[%emt 0:01:40]} Rf4 {[%emt 0:02:25]} 36. Bb5 {[%emt 0:00:13]} Rxd4 {[%emt 0:00:00]} 37. Rd7+ {[%emt 0:00:19]} Ke8 {[%emt 0:00:00]} 38. Rxd6+ {[%emt 0:00:05]} Kf7 {[%emt 0:00:03]} 39. Rxb6 {[%emt 0:00:12]} Rf4 {[%emt 0:00:38]} 40. a4 {[%emt 0:00:00]} Rf6 {[%emt 0:00:00]} 41. Bc6 {[%emt 0:02:28]} Ke6 {[%emt 0:01:01]} 42. Rb5 {[%emt 0:00:29]} Rf5 {[%emt 0:00:37]} 43. a5 {[%emt 0:00:21]} Kd6 {[%emt 0:00:33]} 44. Bb7 {[%emt 0:00:04]} Re5 {[%emt 0:00:43]} 45. Kf1 {[%emt 0:01:33]} d4 {[%emt 0:00:23]} 46. Rb6+ {[%emt 0:03:11]} Kc7 {[%emt 0:02:48]} 47. b4 {[%emt 0:00:24]} Bd6 {[%emt 0:01:05]} 48. Be4 {[%emt 0:00:17]} Re7 {[%emt 0:00:54]} 49. Rc6+ {[%emt 0:00:46]} Kd7 {[%emt 0:00:06]} 50. b5 {[%emt 0:01:49]} Re5 {[%emt 0:00:49]} 51. a6 {[%emt 0:00:27]} Bb8 {[%emt 0:00:57]} 52. Rb6 {[%emt 0:01:06]} Kc8 {[%emt 0:00:09]} 53. Rxb8+ {[%emt 0:00:23]} Kxb8 {[%emt 0:00:16]} 54. b6 {[%emt 0:00:06]} 1-0

[Event "IND-ch Women 2019"]
[Site "Karaikkudi"]
[Date "2019.07.21"]
[Round "4.6"]
[White "Mahalakshmi D M"]
[Black "Mrudul Dehankar"]
[Result "0-1"]
[ECO "E43"]
[WhiteElo "2227"]
[BlackElo "2074"]
[Annotator "NA"]
[PlyCount "116"]
[EventDate "2019.07.19"]
[EventType "swiss"]
[EventCountry "IND"]
[SourceTitle "playchess.com"]
[Source "ChessBase"]
[SourceQuality "1"]
[TimeControl "40/5400+30:1800+30"]

1. d4 {[%emt 0:00:00]} Nf6 {[%emt 0:00:00]} 2. c4 {[%emt 0:00:00]} e6 {[%emt 0:00:00]} 3. Nc3 {[%emt 0:00:08]} Bb4 {[%emt 0:00:10]} 4. e3 {[%emt 0:00:16]} b6 {[%emt 0:00:12]} 5. Bd3 {[%emt 0:00:07]} Bb7 {[%emt 0:00:10]} 6. Nf3 {[%emt 0:00:09]} Ne4 {[%emt 0:00:33]} 7. Bxe4 {[%emt 0:03:39]} Bxe4 {[%emt 0:00:17]} 8. Bd2 {[%emt 0:03:04]} Bb7 {[%emt 0:09:55]} 9. d5 {[%emt 0:04:52]} O-O {[%emt 0:04:44]} 10. O-O {[%emt 0:01:53]} f5 {[%emt 0:10:41]} 11. a3 {[%emt 0:14:54]} Be7 {[%emt 0:02:27]} 12. Qc2 {[%emt 0:03:30]} Bf6 {[%emt 0:05:58]} (12... c6 $11) 13. Rad1 {[%emt 0:11:02]} Qe8 {[%emt 0:15:55]} 14. e4 {[%emt 0:05:29]} Qg6 {[%emt 0:12:12]} (14... fxe4 $14 15. Nxe4 Qg6) 15. e5 {[%emt 0:07:40]} Bd8 {[%emt 0:02:00]} 16. Rfe1 {[%emt 0:03:56]} c6 {[%emt 0:04:55]} 17. Qd3 {[%emt 0:11:00]} cxd5 {[%emt 0:04:05]} 18. cxd5 {[%emt 0:00:04]} Na6 $11 {[%emt 0:00:16]} 19. Bf4 {[%emt 0:12:20]} Nc7 {[%emt 0:06:22]} 20. d6 {[%emt 0:01:32]} Nd5 {[%emt 0:01:35]} 21. Nxd5 {[%emt 0:00:30]} Bxd5 {[%emt 0:00:03]} 22. Qe3 {[%emt 0:00:22]} Bb7 {[%emt 0:04:23]} 23. Rc1 {[%emt 0:02:45]} b5 {[%emt 0:00:29]} 24. Rc3 {[%emt 0:01:02]} Bb6 {[%emt 0:01:40]} 25. Qe2 {[%emt 0:00:08]} Rac8 {[%emt 0:05:20]} 26. Rec1 {[%emt 0:00:47]} Rc4 {[%emt 0:04:02]} 27. Rxc4 {[%emt 0:04:49]} bxc4 {[%emt 0:00:01]} 28. Nh4 {[%emt 0:01:09]} Qg4 {[%emt 0:01:03]} 29. Qxg4 {[%emt 0:00:52]} fxg4 {[%emt 0:00:01]} 30. Rxc4 {[%emt 0:01:49]} Bd5 {[%emt 0:02:38]} 31. Ra4 {[%emt 0:01:09]} Bc6 {[%emt 0:01:32]} 32. Rc4 {[%emt 0:00:10]} g5 {[%emt 0:01:05]} 33. Bg3 {[%emt 0:00:20]} gxh4 {[%emt 0:00:11]} 34. Rxg4+ {[%emt 0:00:03]} Kh8 {[%emt 0:01:09]} 35. Bxh4 {[%emt 0:00:36]} Bd8 {[%emt 0:00:22]} 36. Bg3 {[%emt 0:00:33]} h5 {[%emt 0:00:48]} 37. Rb4 {[%emt 0:01:10]} Kg7 {[%emt 0:00:36]} 38. Kf1 {[%emt 0:02:01]} Ba5 {[%emt 0:00:31]} 39. Rd4 {[%emt 0:01:38]} Bb5+ {[%emt 0:00:29]} 40. Kg1 {[%emt 0:00:00]} Kg6 {[%emt 0:00:00]} 41. Bh4 {[%emt 0:03:02]} Bb6 {[%emt 0:08:11]} 42. Rb4 {[%emt 0:00:50]} a6 {[%emt 0:00:45]} 43. a4 {[%emt 0:07:59]} Bc5 {[%emt 0:01:42]} 44. Rb3 {[%emt 0:01:42]} Bxa4 {[%emt 0:05:23]} 45. Rg3+ {[%emt 0:00:58]} Kh7 {[%emt 0:01:52]} 46. Bf6 {[%emt 0:00:46]} Rg8 {[%emt 0:03:51]} 47. Rh3 {[%emt 0:02:47]} Kh6 {[%emt 0:00:20]} 48. Rc3 {[%emt 0:01:05]} Bb6 {[%emt 0:00:42]} 49. g3 {[%emt 0:00:45]} Bc6 {[%emt 0:03:00]} 50. Rb3 {[%emt 0:01:07]} Rb8 {[%emt 0:01:29]} 51. Rc3 {[%emt 0:01:32]} Kg6 {[%emt 0:03:46]} 52. b4 {[%emt 0:02:30]} a5 {[%emt 0:02:50]} 53. bxa5 {[%emt 0:00:36]} Bxa5 {[%emt 0:00:04]} 54. Rc1 {[%emt 0:00:21]} Rb2 {[%emt 0:00:35]} 55. g4 {[%emt 0:01:52]} hxg4 {[%emt 0:00:57]} 56. Bh4 {[%emt 0:00:06]} Kf5 {[%emt 0:00:41]} 57. Bg3 {[%emt 0:00:42]} Bd2 {[%emt 0:00:13]} 58. h4 {[%emt 0:01:42]} Bxc1 {[%emt 0:00:11]} 0-1

[Event "IND-ch Women 2019"]
[Site "Karaikkudi"]
[Date "2019.07.21"]
[Round "4.7"]
[White "Nandhini, Saripalli"]
[Black "Michelle Catherina, P."]
[Result "1/2-1/2"]
[ECO "C58"]
[WhiteElo "1933"]
[BlackElo "2226"]
[Annotator "NA"]
[PlyCount "63"]
[EventDate "2019.07.19"]
[EventType "swiss"]
[EventCountry "IND"]
[SourceTitle "playchess.com"]
[Source "ChessBase"]
[SourceQuality "1"]
[TimeControl "40/5400+30:1800+30"]

1. e4 {[%emt 0:00:08]} e5 {[%emt 0:02:15]} 2. Nf3 {[%emt 0:00:08]} Nc6 {[%emt 0:00:04]} 3. Bc4 {[%emt 0:00:06]} Nf6 {[%emt 0:00:06]} 4. Ng5 {[%emt 0:00:18]} d5 {[%emt 0:00:14]} 5. exd5 {[%emt 0:00:02]} Na5 {[%emt 0:00:10]} 6. Bb5+ {[%emt 0:00:07]} c6 {[%emt 0:00:46]} 7. dxc6 {[%emt 0:00:03]} bxc6 {[%emt 0:00:03]} 8. Bd3 {[%emt 0:00:10]} Nd5 {[%emt 0:03:37] C58: Two Knights: 4 Ng5 d5 5 exd5 Na5 sidelines} 9. Nf3 {[%emt 0:00:50]} Bd6 {[%emt 0:01:47]} 10. O-O {[%emt 0:00:16]} Nf4 {[%emt 0:05:56]} (10... O-O 11. Re1 f5 12. b4 Nxb4 13. Nxe5 Bxe5 14. Rxe5 Nxd3 15. cxd3 Qd4 16. Rxa5 Qxa1 {½-½ (31) Vovk,A (2616)-Demchenko,A (2661) Fagernes 2019}) 11. Re1 {[%emt 0:03:57]} Nxd3 {[%emt 0:01:48]} 12. cxd3 {[%emt 0:02:52]} O-O {[%emt 0:04:20]} 13. Nc3 {[%emt 0:13:23]} Re8 {[%emt 0:07:55]} 14. Ne4 {[%emt 0:01:08]} Bg4 {[%emt 0:11:49]} 15. h3 {[%emt 0:04:30]} Bh5 {[%emt 0:02:03]} 16. Ng3 $146 {[%emt 0:00:17]} ({Predecessor:} 16. b3) 16... Bg6 {[%emt 0:00:46]} 17. b4 {[%emt 0:01:40]} Bxb4 {[%emt 0:06:55]} 18. Qa4 {[%emt 0:00:35]} Bd6 {[%emt 0:04:03]} 19. Ba3 {[%emt 0:01:14]} Nb7 {[%emt 0:11:04]} 20. Rab1 {[%emt 0:15:55]} Nc5 {[%emt 0:09:44]} 21. Qxc6 {[%emt 0:02:02]} Bf8 {[%emt 0:04:45]} 22. Bxc5 {[%emt 0:13:55]} (22. Rxe5 $14 Nxd3 23. Rxe8 Qxe8 24. Qxe8 Rxe8 25. Bxf8 Kxf8 26. Nh4) 22... Rc8 $11 {[%emt 0:00:14]} 23. Qa4 {[%emt 0:06:19]} Bxc5 {[%emt 0:03:26]} 24. Nxe5 {[%emt 0:01:16]} Bxf2+ {[%emt 0:12:00]} 25. Kxf2 {[%emt 0:00:58]} Rxe5 {[%emt 0:00:27]} 26. Rxe5 {[%emt 0:03:57]} Qf6+ {[%emt 0:00:01]} 27. Rf5 {[%emt 0:00:57]} Bxf5 {[%emt 0:00:48]} 28. Nxf5 {[%emt 0:00:04]} Qxf5+ {[%emt 0:00:08]} 29. Kg1 {[%emt 0:00:22]} Qxd3 {[%emt 0:02:23]} 30. Re1 {[%emt 0:00:21]} g6 {[%emt 0:03:02]} 31. Re8+ {[%emt 0:01:55]} Rxe8 {[%emt 0:00:06]} 32. Qd1 {[%emt 0:26:15]} 1/2-1/2